Cogmind - Beta 11 X7 @@@ ROGUE MODE // 2021.12.02 @ 19:58:49 // Winter2019/RPGLIKE Player: kasaphescent Result: Destroyed by H-61 Shepherd with Heavy Assault Cannon Performance ------------- Evolutions (2) 1000 Regions Visited (4) 800 Robots Destroyed (34) 170 Value Destroyed (986) 986 Prototype IDs (1) 20 Alien Tech Used (0) 0 Bonus (30) 30 TOTAL SCORE: 3006 Bonus ------- High Alert Combat Kills 30 Cogmind --------- Core Integrity 0/600 Matter 243/400 Energy 280/280 System Corruption 0% Temperature Cool (74) Movement Walking (120) Location -8/Storage Parts ------- > --- POWER (1) -------- Heavy Ion Engine > --- PROPULSION (3) --- Aluminum Leg Aluminum Leg Aluminum Leg > --- UTILITY (2) ------ Hardened Medium Armor Plating > --- WEAPON (2) ------- Advanced Assault Cannon Advanced Assault Cannon > --- INVENTORY (2) ---- High-capacity Matter Pod (200) Rocket Launcher Peak State ------------ > --- POWER ------------ Heavy Ion Engine > --- PROPULSION ------- Aluminum Leg Aluminum Leg Aluminum Leg > --- UTILITY ---------- Heat Sink Hardened Medium Armor Plating > --- WEAPON ----------- Advanced Assault Cannon Advanced Assault Cannon > --- INVENTORY -------- High-capacity Matter Pod Rocket Launcher [Rating: 18] Favorites ----------- Power Light Nuclear Core Engine Heavy Ion Engine Power Core Light Nuclear Core Propulsion Aluminum Leg Leg Aluminum Leg Utility Hardened Light Armor Plating Device Heat Sink Processor Targeting Computer Protection Hardened Light Armor Plating Weapon Light Cannon Energy Gun Small Laser Ballistic Gun Light Assault Rifle Ballistic Cannon Light Cannon Build | -11 -10 -9 -8 -8 ------- Run | Scr Mat Mat Mat Sto Slots Evolved 4 | 2 1 1 . . Power . | . . . . . Propulsion 2 | 1 . 1 . . Utility 1 | . 1 . . . Weapon 1 | 1 . . . . Parts Attached 18 | 5 4 7 2 . Power 3 | 1 1 1 . . Engine 2 | 1 . 1 . . Core 1 | . 1 . . . Reactor . | . . . . . Propulsion 3 | 2 . 1 . . Treads . | . . . . . Leg 3 | 2 . 1 . . Wheel . | . . . . . Hover . | . . . . . Flight . | . . . . . Utility 4 | . 2 2 . . Device 1 | . . 1 . . Storage . | . . . . . Processor 1 | . 1 . . . Hackware . | . . . . . Protection 2 | . 1 1 . . Artifact . | . . . . . Weapon 8 | 2 1 3 2 . Energy Gun 1 | 1 . . . . Energy Cannon . | . . . . . Ballistic Gun 1 | 1 . . . . Ballistic Cannon 6 | . 1 3 2 . Launcher . | . . . . . Special Weapon . | . . . . . Impact Weapon . | . . . . . Slashing Weapon . | . . . . . Piercing Weapon . | . . . . . Special Melee Weapon . | . . . . . Unidentified Prototypes 1 | . . 1 . . Parts Lost . | . . . . . Power . | . . . . . Propulsion . | . . . . . Utility . | . . . . . Weapon . | . . . . . Highest Loss Streak . | . . . . . Average Slot Usage (%) 99 | . 98 100 100 100 Engine 7 | . 8 5 12 12 Core 6 | . 6 8 . . Leg 31 | . 30 30 37 37 Device 8 | . . 9 12 12 Processor 4 | . 14 3 . . Protection 11 | . 5 13 12 12 Energy Gun 2 | . 14 . . . Ballistic Gun 3 | . 15 . . . Ballistic Cannon 21 | . . 26 25 25 Naked Turns . | . . . . . Heaviest Build 31 | 7 14 29 31 31 Greatest Support 30 | 20 20 30 30 30 Greatest Overweight (x) 1 | . . 1 1 1 Average Overweight (x) . | . . . . 1 Largest Inventory Capacity 2 | . 1 2 2 2 Average Capacity 1 | . . 1 2 2 Most Carried 2 | . 1 2 2 2 Average Carried 1 | . . 1 2 2 Final Capacity 2 | . 1 2 2 2 Final Carried 2 | . 1 2 2 2 Class Distribution -------------------- 100% | Mutant Dominant Class ---------------- Mutant | -10/Materials Mutant | -9/Materials Mutant | -8/Materials Mutant | -8/Storage Resources | -11 -10 -9 -8 -8 ----------- Run | Scr Mat Mat Mat Sto Matter Collected 1185 | 250 38 766 131 . Remotely . | . . . . . Salvage Created 1195 | . 151 920 124 . Parts 53 | . 7 38 8 . Haulers Intercepted 2 | . . 2 . . Recyclers Shooed . | . . . . . Parts Field Recycled . | . . . . . Retrieved Matter . | . . . . . Parts Self-Destructed . | . . . . . Prevented . | . . . . . Kills | -11 -10 -9 -8 -8 ------- Run | Scr Mat Mat Mat Sto Combat Hostiles Destroyed 24 | . 2 19 3 . Guns 2 | . 2 . . . Cannons 22 | . . 19 3 . Classes Destroyed 7 | . 2 4 1 . Worker 6 | . 1 5 . . Hauler 2 | . . 2 . . Recycler 2 | . . 2 . . Swarmer 2 | . . 2 . . Grunt 12 | . 2 10 . . Sentry 8 | . . 7 1 . Specialist 2 | . . . 2 . Best Kill Streak 5 | . 1 5 1 . Combat Bots Only 4 | . 1 4 1 . Max Kills in Single Turn 2 | . 1 2 1 . Gunslinging . | . . . . . Exploded . | . . . . . Melee . | . . . . . Uniques/NPCs Destroyed . | . . . . . Combat | -11 -10 -9 -8 -8 -------- Run | Scr Mat Mat Mat Sto Damage Taken 1431 | . 124 835 114 358 Core 1029 | . 103 621 72 233 Absorbed by Shields . | . . . . . Redirected to Core 879 | . 71 515 60 233 Core Remaining (%) 76 | 100 82 47 . . Volleys Fired 86 | . 11 60 7 8 Largest 2 | . 2 2 2 2 Hottest 96 | . 60 74 96 96 Shots Fired 172 | . 22 120 14 16 Gun 22 | . 22 . . . Cannon 150 | . . 120 14 16 Launcher . | . . . . . Special . | . . . . . Kinetic 161 | . 11 120 14 16 Thermal 11 | . 11 . . . Explosive . | . . . . . Electromagnetic . | . . . . . Robot Hit Streak 14 | . 4 7 14 7 Robot Miss Streak 3 | . 2 3 1 2 Penetration Max . | . . . . . Secondary Targets . | . . . . . Shots Hit Robots 111 | . 14 75 10 12 Core Hits 50 | . 7 36 6 1 Critical Kills . | . . . . . Critical Parts Destroyed . | . . . . . Critical Strikes 1 | . . 1 . . Blast 1 | . . 1 . . Melee Attacks . | . . . . . Impact . | . . . . . Slashing . | . . . . . Piercing . | . . . . . Sneak Attacks . | . . . . . Combat Hostiles . | . . . . . Follow-up Attacks . | . . . . . Damage Inflicted 2198 | . 135 1448 281 334 Guns 135 | . 135 . . . Cannons 2055 | . . 1440 281 334 Explosions . | . . . . . Melee . | . . . . . Ramming 8 | . . 8 . . Kinetic 2112 | . 57 1440 281 334 Thermal 78 | . 78 . . . Explosive . | . . . . . Electromagnetic . | . . . . . Impact . | . . . . . Slashing . | . . . . . Piercing . | . . . . . Highest Corruption . | . . . . . Average Corruption . | . . . . . Corruption Purged . | . . . . . Overload Shots . | . . . . . Overflow Damage . | . . . . . Projectiles . | . . . . . Explosions . | . . . . . Melee . | . . . . . Knockbacks 7 | . . 7 . . Impact . | . . . . . Kinetic 5 | . . 5 . . Secondary 2 | . . 2 . . Self-Inflicted Damage . | . . . . . Shots . | . . . . . Rammed . | . . . . . Targets Rammed 3 | . . 3 . . Kicked 3 | . . 3 . . Crushed . | . . . . . Highest Temperature 300 | . 123 300 108 129 Average Temperature 67 | . 53 75 42 58 Received Heat Transfer 510 | . 69 333 81 27 Siege Activations . | . . . . . Robots Corrupted . | . . . . . Combat Hostiles . | . . . . . Parts Fried . | . . . . . Impact Corruptions . | . . . . . Robots Melted . | . . . . . Combat Hostiles . | . . . . . Parts Melted . | . . . . . Heat Transferred 175 | . 175 . . . Parts Sabotaged . | . . . . . Parts Stolen . | . . . . . Parts Stripped . | . . . . . Power Chain Reactions . | . . . . . Missiles Intercepted . | . . . . . Alert | -11 -10 -9 -8 -8 ------- Run | Scr Mat Mat Mat Sto Peak Influence 466 | . 90 466 273 118 Initial 158 | . . 37 158 115 Average 159 | . 42 191 216 117 Maximum Alert Level 2 | . . 2 1 . Low Security (%) 61 | 100 100 56 19 100 Level 1 36 | . . 40 80 . Level 2 2 | . . 3 . . Level 3 . | . . . . . Level 4 . | . . . . . Level 5 . | . . . . . High Security . | . . . . . Max Security . | . . . . . Squads Dispatched 3 | . . 1 1 1 Investigation . | . . . . . Extermination . | . . . . . Reinforcement 3 | . . 1 1 1 Assault . | . . . . . Garrison . | . . . . . Intercept . | . . . . . Construction Impeded . | . . . . . Haulers Reinforced . | . . . . . Active Scanning Responses . | . . . . . Cargo Convoy Interrupts . | . . . . . Stealth | -11 -10 -9 -8 -8 --------- Run | Scr Mat Mat Mat Sto Distress Signals 3 | . . 3 . . Communications Jammed . | . . . . . Distress Signals . | . . . . . Times Spotted 38 | . 4 28 3 3 Peak Tracking Total 8 | . 2 8 2 4 Tactical Retreats 2 | . 1 1 . . Traps | -11 -10 -9 -8 -8 ------- Run | Scr Mat Mat Mat Sto Traps Triggered 1 | . . 1 . . Indirectly . | . . . . . Trap Hack Attempts . | . . . . . Triggered . | . . . . . Disarmed . | . . . . . Reprogrammed . | . . . . . Reused . | . . . . . Traps Extracted . | . . . . . Installed . | . . . . . Triggered . | . . . . . Machines | -11 -10 -9 -8 -8 ---------- Run | Scr Mat Mat Mat Sto Machines Disabled . | . . . . . Max in Single Turn . | . . . . . Machines Sabotaged . | . . . . . Garrisons Compromised . | . . . . . Overloaded Fab Kills . | . . . . . Fab Network Shutdowns . | . . . . . Hacking | -11 -10 -9 -8 -8 --------- Run | Scr Mat Mat Mat Sto Machines Accessed 3 | . 1 . 2 . Terminals 3 | . 1 . 2 . Fabricators . | . . . . . Repair Stations . | . . . . . Recycling Units . | . . . . . Scanalyzers . | . . . . . Garrison Access . | . . . . . Total Hacks 11 | . 3 . 8 . Successful 5 | . 2 . 3 . Failed 6 | . 1 . 5 . Catastrophic . | . . . . . Database Lockouts . | . . . . . Manual 11 | . 3 . 8 . Terminals 11 | . 3 . 8 . Fabricators . | . . . . . Repair Stations . | . . . . . Recycling Units . | . . . . . Scanalyzers . | . . . . . Garrison Access . | . . . . . Terminal Hacks . | . . . . . Fabricator Hacks . | . . . . . Repair Station Hacks . | . . . . . Recycling Unit Hacks . | . . . . . Scanalyzer . | . . . . . Garrison Access Hacks . | . . . . . Unauthorized Hacks 5 | . 2 . 3 . Terminals 5 | . 2 . 3 . Track 2 | . 1 . 1 . Botnet 3 | . 1 . 2 . Fabricators . | . . . . . Repair Stations . | . . . . . Recycling Units . | . . . . . Scanalyzers . | . . . . . Garrison Access . | . . . . . Data Cores Recovered . | . . . . . Used . | . . . . . Hacking Detections 2 | . . . 2 . Full Trace Events . | . . . . . Feedback Events . | . . . . . Feedback Blocked . | . . . . . Robot Schematics Acquired . | . . . . . Robots Built . | . . . . . Matter . | . . . . . Time . | . . . . . Total Robot Build Rating . | . . . . . Part Schematics Acquired . | . . . . . Parts Built . | . . . . . Matter . | . . . . . Time . | . . . . . Total Part Build Rating . | . . . . . Parts Repaired . | . . . . . Time . | . . . . . Parts Recycled . | . . . . . Recycled Matter . | . . . . . Retrieved Matter . | . . . . . Retrieved Components . | . . . . . Parts Scanalyzed . | . . . . . Part Schematics Acquired . | . . . . . Parts Damaged . | . . . . . Bothacking | -11 -10 -9 -8 -8 ------------ Run | Scr Mat Mat Mat Sto Used RIF Installer . | . . . . . Robots Hacked . | . . . . . Non-combat . | . . . . . Combat . | . . . . . Robot Hacks Applied . | . . . . . Relay Couplers Released . | . . . . . Robots Rewired . | . . . . . Allies Hacked . | . . . . . Hacks Repelled . | . . . . . Allies | -11 -10 -9 -8 -8 -------- Run | Scr Mat Mat Mat Sto Total Allies . | . . . . . Largest Group . | . . . . . Highest-Rated Group . | . . . . . Highest-Rated Ally . | . . . . . Total Orders . | . . . . . Ally Attacks . | . . . . . Total Damage . | . . . . . Kills . | . . . . . Allies Corrupted . | . . . . . Allies Melted . | . . . . . Intel | -11 -10 -9 -8 -8 ------- Run | Scr Mat Mat Mat Sto Robot Analysis Total . | . . . . . Derelict Logs Recovered . | . . . . . Drone Launches . | . . . . . Drone Recoveries . | . . . . . Exploration | -11 -10 -9 -8 -8 ------------- Run | Scr Mat Mat Mat Sto Turns Passed 1559 | 48 289 922 254 46 Spaces Moved 880 | 35 207 515 114 9 Core 1 | 1 . . . . Treads . | . . . . . Legs 879 | 34 207 515 114 9 Wheels . | . . . . . Hover . | . . . . . Flight . | . . . . . Fastest Speed 50 | 50 120 120 120 200 Average Speed 131 | 118 120 127 167 200 Slowest Speed 200 | 120 120 200 200 200 Overloaded Moves . | . . . . . Propulsion Burnouts . | . . . . . Robots Hopped . | . . . . . Cave-ins Triggered . | . . . . . Exploration Rate (%) 23 | 3 41 54 17 4 Regions Visited 4 Branch Regions 1 Pre-discovered Areas . | . . . . . Known Exits Taken . | . . . . . Unknown Exits Taken 4 | 1 1 1 1 . Scrap Searched . | . . . . . Spaces Dug . | . . . . . Terrain Destroyed 10 | . . 4 3 3 Melee . | . . . . . Projectile 10 | . . 4 3 3 AOE . | . . . . . Terrain Rammed . | . . . . . Walls Destroyed . | . . . . . Machines Disabled . | . . . . . Actions | -11 -10 -9 -8 -8 --------- Run | Scr Mat Mat Mat Sto Total 1115 | 39 227 661 165 23 Wait 99 | . 3 50 40 6 Move 876 | 34 206 514 113 9 Hop . | . . . . . Pick Up 2 | . 1 1 . . Fast Attach 13 | 5 4 4 . . Attach . | . . . . . Detach 1 | . . 1 . . Swap 5 | . . 3 2 . Drop 9 | . 2 5 2 . Fire 86 | . 11 60 7 8 Melee . | . . . . . Ram . | . . . . . Kick 3 | . . 3 . . Crush . | . . . . . Escape Stasis . | . . . . . Rewire . | . . . . . Trap . | . . . . . Miscellaneous 21 | . . 20 1 . Route ------- -11/Scrapyard -10/Materials (discovered 2 exits: [*Mat] / [*Min]) -9/Materials -8/Materials -8/Storage History --------- Turn | Location | Event 1 | -11/Scrapyard | Upgraded with Propulsion slot (x1) 1 | -11/Scrapyard | Upgraded with Weapon slot (x1) 17 | -11/Scrapyard | Discovered new exit (range 16) 49 | -11/Scrapyard | Entered Materials 216 | -10/Materials | Upgraded with Utility slot (x1) 276 | -10/Materials | Discovered new exit (range 16) 324 | -10/Materials | Discovered new exit (range 12) 333 | -10/Materials | Build established: Mutant 338 | -10/Materials | Entered another Materials area 340 | -9/Materials | Reached level 2 1006 | -9/Materials | Reached level 3 1023 | -9/Materials | Upgraded with Propulsion slot (x1) 1127 | -9/Materials | Core integrity fell below 50% 1143 | -9/Materials | Discovered new exit (range 15) 1260 | -9/Materials | Entered another Materials area 1261 | -8/Materials | Core integrity fell below 50% 1262 | -8/Materials | Reached level 4 1310 | -8/Materials | Reached level 5 1412 | -8/Materials | Discovered new exit (range 5) 1514 | -8/Materials | Entered Storage 1536 | -8/Storage | Core integrity fell below 20% 1560 | -8/Storage | Destroyed by H-61 Shepherd with Heavy Assault Cannon Last Messages --------------- 01486_ R-06 Scavenger collects Adv. Visual Processing Unit. 01490_ R-06 Scavenger collects Armor Integrity Analyzer. 01494_ Critical hit (Burn: +37). 01496_ R-06 Scavenger collects Core Analyzer. 01499_ X-62 Marksman destroyed. 01500_ U-05 Engineer builds a Wall. 01500_ R-06 Scavenger collects Imp. Deuterium Engine. 01502_ Acquired 43 matter. 01503_ R-06 Scavenger collects Core Analyzer. 01506_ Acquired 7 matter. 01506_ U-05 Engineer builds a Wall. LOCATION=UNKNOWN GOAL=ESCAPE 01527_ H-61 Shepherd calls for reinforcements. 01527_ ALERT: Hostile activity reported, dispatching reinforcements to area. 01527_ Slug penetrates Wall. 01531_ Penetrated by Slug. 01560_ Slug penetrates Wall. 01560_ Heat Sink blasted off. Map ----- +----------------------------------------------------+ | ???????????????????????????????? | | ???????????????????????????????? | | ???????????????????????????????? | | ???????????????????????????????? | | ???????????????????????????????? | | ???????????????????????????????? | | ???????????????????????????????? | | ????????????????????????? ?????? | | ????????????????????????? ?????? | | ????????????????????????? ?????? | | ????????????????????????? ?????? | | ????????????????????????? ?????? | | ????????????????????????? ?????? | | ????????????????????????? ?????? | | ???????????????# ??????# #????? | | ???????????????# ?????# #????? | | ???????????????# "????# #????? | | ???????????????# ""???# #????? | | ??????????? ????? ??# #????? | | ??????????? "###+""### ###??? | | ?????????? % %% ##?? | | ?????????? % %% ;#?? | | ?????????? % HY %;#?? | | ???????????????#""#+####; #??? | | ????????????????????????# %#??? | | ????????????????????????#@ #??? | | ????????????????????????# #??? | | ????????????????????????# #??? | | ????????????????????????# #??? | | ????????????????????????# #??? | | ????????????????????????#####??? | | ???????????????????????????????? | | ???????????????????????????????? | | ???????????????????????????????? | | ???????????????????????????????? | | ???????????????????????????????? | | ???????????????????????????????? | | ???????????????????????????????? | | ???????????????????????????????? | | | | | | | | | | | | | | | | | | | | | | | +----------------------------------------------------+ Best States ------------- Heat Dissipation 35 Energy Generation 14 Energy Capacity 280 Matter Stores 400 Matter Capacity 400 Sight Range 16 Terrain Scan Density 10 Armor Coverage 225 Evasion (%) 55 Targeting Accuracy 5 Item Schematics ----------------- None Robot Schematics ------------------ None Fabricated ------------ Nothing Alien Tech Used ----------------- None Achievements -------------- None Challenges ------------ None RPGLIKE | -11 -10 -9 -8 -8 --------- Run | Scr Mat Mat Mat Sto Levels Raised 4 | . . 2 2 . XP Earned 10394 | 3000 325 4109 1960 1000 XP Spent 3475 | 1000 750 1725 . . Upgrades 8 | 2 2 4 . . Propulsion Slot 2 | 1 . 1 . . Utility Slot 1 | . 1 . . . Weapon Slot 1 | 1 . . . . Matter Storage 2 | . . 2 . . Inventory Capacity 2 | . 1 1 . . Protomatter Created 151 | . . 145 6 . Integrity Restored 429 | . . 411 18 . Core 429 | . . 411 18 . Protomatter Decayed 8 | . . 8 . . Game ------ Seed GuidanceBladeBroadsword Manual? 0 Play Time 00:11:59 Cumulative 172.6 hours Start 2021.12.02 @ 19:46:02 End 2021.12.02 @ 19:58:49 Sessions 1 Manual Loads 0 Difficulty Rogue Special Mode Winter2019/RPGLIKE Game No. 118 Rogue 118 Adventurer 0 Explorer 0 Win Type - Total 2 Types 2/0/0/0/0/0/0/0/0 Lore% 56 Gallery% 74 Achievement% 52 Wizard Run 0 Options --------- ASCII 0 Keyboard 1 Movement Numpad Keybinds 0 Fullscreen 1 Font 18/SmallcapsGlow Map View 76x50 Tactical HUD 1 Map Filters NONE Filters NONE Steam 1 RUN: df93f824-c8d3-4c18-bbaf-73fd588f3ab6